bitfinex/quotes_ETHUSD_20241123
["timestamp","ask_amount","ask_price","bid_price","bid_amount"]
[1732388942045,0.05739293,3417.4,3417.1,0.7607]
[1732388942441,0.05735082,3417.3,3417.1,0.7607]
[1732388942853,0.7288,3418.1,3417.1,0.7607]
[1732388943157,0.33080081,3418.0,3417.2,0.02926383]
[1732388943355,0.27305399,3417.9,3417.2,1.09116025]
[1732388943562,0.05769026,3417.9,3417.6,0.2915]
[1732388943766,0.7288,3418.9,3417.7,0.7607]
[1732388943968,0.7288,3418.9,3417.7,0.2915]
[1732388944153,0.27297746,3418.8,3417.9,0.7607]
[1732388944350,0.27297746,3418.7,3417.9,0.7607]
[1732388944586,0.27297746,3418.6,3417.9,0.7607]
[1732388944890,1.52846,3419.2,3417.9,0.7607]
[1732388944891,0.27297746,3418.5,3417.9,0.7607]
[1732388945043,0.152846,3419.1,3417.9,0.7607]
[1732388945450,0.33122504,3419.0,3417.9,0.7607]
[1732388945672,0.7288,3418.8,3417.9,0.7607]
[1732388945854,0.27275662,3418.7,3417.9,0.7607]
[1732388946158,0.27273984,3418.6,3418.0,0.02925667]
[1732388946379,0.05819825,3418.7,3418.0,0.32075667]
[1732388946541,0.152846,3419.1,3418.1,0.7607]
[1732388946747,0.05815445,3418.6,3418.1,0.7607]
[1732388946947,0.152846,3419.1,3418.1,0.7607]
[1732388947182,0.0580979,3418.5,3418.1,0.7607]
[1732388947447,0.152846,3419.1,3418.1,0.7607]
[1732388947685,0.05804136,3418.4,3418.1,0.7607]
[1732388947993,0.152846,3419.1,3418.1,0.7607]
[1732388948290,0.27246191,3419.0,3418.1,0.7607]
[1732388948583,0.27246191,3418.9,3418.1,0.7607]
[1732388948783,0.05826752,3418.8,3418.1,0.7607]
[1732388948990,0.152846,3419.1,3418.1,0.7607]
[1732388949160,0.27235917,3419.0,3418.1,0.7607]
[1732388949349,0.33068323,3418.9,3418.3,0.8269]
[1732388949683,0.05832406,3418.9,3418.3,0.8269]
[1732388949892,0.05832406,3418.9,3418.4,0.2915]
[1732388950047,0.7288,3420.0,3418.5,0.8269]
[1732388950247,0.05828662,3418.8,3418.5,0.8269]
[1732388950461,0.7288,3420.0,3418.5,0.8269]
[1732388951047,0.7288,3420.0,3418.5,0.85614839]
[1732388951447,0.7288,3420.0,3418.5,0.32074839]
[1732388951681,0.7288,3420.0,3418.6,0.8269]
[1732388951907,0.7288,3420.0,3418.7,0.8269]
[1732388952201,1.13047744,3419.9,3418.9,0.8269]
[1732388952413,0.85860648,3419.9,3419.1,1.1184]
[1732388954303,0.85860648,3419.9,3419.1,0.8269]
[1732388955000,0.85860648,3419.9,3419.3,0.8269]
[1732388955359,0.79966,3419.9,3419.3,0.8269]
[1732388955580,0.05900456,3419.8,3419.3,0.8269]
[1732388959274,0.78780456,3419.8,3419.1,0.8269]
[1732388959485,0.94655102,3419.8,3419.1,0.8269]
[1732388962189,0.94655102,3419.8,3418.3,0.8269]
[1732388963285,0.7288,3419.7,3418.3,0.8269]
[1732388963829,0.05889849,3419.6,3418.4,0.02925026]
[1732388964030,0.05889849,3419.6,3418.5,0.8269]
[1732388964198,0.05889849,3419.6,3418.8,0.2915]
[1732388970895,0.05889849,3419.6,3419.0,0.8072]
[1732388971333,0.05676331,3419.5,3419.0,0.8072]
[1732388971532,0.79966,3419.9,3419.2,1.0987]
[1732388971737,0.79966,3419.9,3419.0,0.40874399]
[1732388971738,0.79966,3419.9,3419.4,0.2915]
[1732388972039,0.05693283,3419.8,3419.4,0.2915]
[1732388974198,0.05693283,3419.8,3419.6,1.0987]
[1732388974743,0.7288,3420.5,3419.6,1.0987]
[1732388975531,0.7288,3420.4,3419.6,1.0987]
[1732388975940,0.05562427,3420.3,3419.6,1.0987]
[1732388976138,0.15132243,3420.2,3419.6,1.0987]
[1732388976430,0.0555113,3420.1,3419.6,1.0987]
[1732388979814,0.7288,3420.0,3419.1,1.072]
[1732388980041,0.05368577,3419.9,3419.1,1.072]
[1732388982496,0.05368577,3419.9,3419.3,0.2915]
[1732388982734,0.05368577,3419.9,3419.3,0.70024399]
[1732388982942,0.7288,3420.3,3419.3,0.70024399]
[1732388983262,0.27270014,3420.2,3419.3,0.70024399]
[1732388983537,0.22687196,3420.2,3419.3,0.72948634]
[1732388983926,0.27268793,3420.1,3419.4,0.7805]
[1732388984242,0.05372897,3420.0,3419.5,0.02924173]
[1732388984434,0.05372897,3420.0,3419.4,1.48074399]
[1732388984648,0.7288,3420.3,3419.4,1.48074399]
[1732388984649,0.7288,3420.3,3419.5,0.02924016]
[1732388984941,0.05368461,3419.9,3419.4,1.48074399]
[1732388985123,0.7288,3420.3,3419.4,1.48074399]
[1732388985330,0.05200231,3419.8,3419.4,1.48074399]
[1732388985629,0.05141247,3419.7,3419.4,1.48074399]
[1732388985822,0.7288,3420.3,3419.5,0.02924041]
[1732388986024,0.05169495,3420.2,3419.5,0.7805]
[1732388986214,0.7288,3420.4,3419.6,0.2915]
[1732388986424,0.05175144,3420.3,3419.6,0.2915]
[1732388989579,0.05175144,3420.3,3419.5,0.80974035]
[1732388989580,0.05175144,3420.3,3419.5,0.32074035]
[1732388989729,0.05175144,3420.3,3419.9,0.2915]
[1732388989936,0.05175144,3420.3,3420.1,0.2915]
[1732388990360,1.44e-06,3420.3,3420.1,0.2915]
[1732388990528,0.04996995,3420.3,3420.1,0.2915]
[1732388990734,0.04996976,3420.3,3420.1,0.2915]
[1732388993841,0.04996976,3420.3,3419.9,0.2915]
[1732388994041,0.04996976,3420.3,3419.8,0.53518594]
[1732388994252,0.20072674,3420.3,3419.8,0.53518594]
[1732388994850,0.20072674,3420.3,3419.8,0.82668594]
[1732388995372,0.04996976,3420.3,3419.8,0.82668594]
[1732388995568,1.4576,3420.4,3419.8,0.82668594]
[1732388996434,0.27251854,3420.3,3419.8,0.82668594]
[1732388996636,0.04846351,3420.2,3419.8,0.82668594]
[1732388996977,1.4576,3420.4,3419.8,0.82668594]
[1732388998486,0.27264853,3420.3,3419.8,0.82668594]
[1732388998692,1.4576,3420.4,3419.8,0.82668594]
[1732388998852,0.04846351,3420.2,3419.8,0.82668594]
[1732388999053,1.4576,3420.4,3419.8,0.82668594]
[1732388999286,0.04840702,3420.1,3419.8,0.82668594]
[1732388999492,1.4576,3420.4,3419.8,0.82668594]
[1732388999666,0.04835052,3420.0,3419.8,0.82668594]
[1732388999870,1.4576,3420.4,3419.8,0.82668594]
[1732389000188,0.27274301,3420.3,3419.8,0.82668594]
[1732389000389,0.32111131,3420.2,3419.8,0.82668594]
[1732389000689,0.0483683,3420.2,3419.8,0.82668594]
[1732389001073,1.4576,3420.4,3419.8,0.82668594]
[1732389001268,0.27293594,3420.3,3419.8,0.82668594]
[1732389001472,0.27293594,3420.2,3419.8,0.82668594]
[1732389001687,0.0483683,3420.2,3419.8,0.82668594]
[1732389001991,1.4576,3420.4,3419.8,0.82668594]
[1732389002299,0.27294226,3420.3,3419.8,0.82668594]
[1732389002457,1.4576,3420.4,3419.8,0.82668594]
[1732389002660,0.0483683,3420.2,3419.8,0.82668594]
[1732389002861,0.27294901,3420.1,3419.8,0.82668594]
[1732389003092,0.04831181,3420.1,3419.8,0.82668594]
[1732389003496,1.4576,3420.4,3419.8,0.82668594]
[1732389003662,0.27295317,3420.3,3419.8,0.82668594]
[1732389003863,0.27295317,3420.2,3419.8,0.82668594]
[1732389004087,0.0483654,3420.2,3419.8,0.82668594]
[1732389004481,0.7288,3420.4,3419.9,1.09093847]
[1732389004697,0.7288,3420.4,3419.9,1.49968246]
[1732389004918,0.04840397,3420.3,3419.9,1.49968246]
[1732389005086,0.7288,3420.4,3419.9,1.49968246]
[1732389006314,0.7288,3420.4,3419.9,0.72948246]
[1732389006610,0.7288,3420.9,3420.1,0.2915]
[1732389006810,1.00165429,3420.8,3420.1,0.2915]
[1732389007011,0.32148417,3420.7,3420.1,0.2915]
[1732389007226,0.27285429,3420.6,3420.1,0.2915]
[1732389007517,0.04851693,3420.5,3420.1,0.2915]
[1732389008019,0.7288,3420.8,3420.1,0.2915]
[1732389008376,0.32148626,3420.7,3420.1,0.2915]
[1732389008521,0.04865184,3420.7,3420.2,0.7571]
[1732389008817,0.04865184,3420.7,3420.3,0.02923298]
[1732389009026,0.7288,3420.8,3420.3,0.2915]
[1732389009222,0.32145585,3420.7,3420.3,0.2915]
[1732389009389,0.04865011,3420.7,3420.3,0.2915]
[1732389009582,0.7288,3420.8,3420.3,0.2915]
[1732389009781,0.32144909,3420.7,3420.3,0.2915]
[1732389010023,0.04865242,3420.7,3420.3,0.72947712]
[1732389010225,0.7288,3420.8,3420.5,1.0486]
[1732389010385,0.04865358,3420.7,3420.5,1.58895589]
[1732389010591,1.0486,3421.2,3420.5,1.61818619]
[1732389010789,0.04887944,3421.1,3420.5,2.02693018]
[1732389011125,0.04887944,3421.1,3420.5,1.99769988]
[1732389011440,0.04887944,3421.1,3420.7,0.2915]
[1732389011718,1.0486,3421.3,3420.7,0.2915]
[1732389012129,0.04893589,3421.2,3420.7,0.2915]
[1732389012491,0.04893589,3421.2,3421.1,0.2915]
[1732389012896,0.7288,3423.2,3421.1,0.32072601]
[1732389013129,0.7571,3422.0,3421.2,0.7571]
[1732389013343,0.7571,3422.0,3421.3,0.02922416]
[1732389013633,0.0478317,3421.9,3421.3,0.02922416]
[1732389013838,0.7571,3422.4,3421.3,0.32072416]
[1732389014006,0.32038296,3422.3,3421.3,0.32072416]
[1732389014333,0.27232556,3422.2,3421.4,0.02922296]
[1732389014536,0.27232556,3422.2,3421.5,0.7571]
[1732389014748,0.04794455,3422.1,3421.5,0.7571]
[1732389015129,0.7288,3422.5,3421.4,0.54024719]
[1732389015439,0.7288,3422.3,3421.4,0.54024719]
[1732389015640,0.32014982,3422.2,3421.4,0.54024719]
[1732389015945,0.04800098,3422.2,3421.4,0.54024719]
[1732389016142,0.27204384,3422.1,3421.4,0.54024719]
[1732389016314,0.04800098,3422.2,3421.4,0.54024719]
[1732389016519,0.7288,3421.9,3421.4,0.54024719]
[1732389016839,0.04777526,3421.8,3421.4,0.54024719]
[1732389018624,0.04777526,3421.8,3421.4,1.29734719]
[1732389018828,0.7288,3421.9,3421.4,1.29020623]
[1732389019319,0.7288,3421.9,3421.4,0.53310623]
[1732389019716,0.04777526,3421.8,3421.4,0.53310623]
[1732389020043,0.7288,3421.9,3421.4,0.53310623]
[1732389021243,0.7288,3422.7,3421.6,0.7571]
[1732389021452,0.31997728,3422.6,3421.6,0.7571]
[1732389021602,0.27175064,3422.5,3421.6,0.7571]
[1732389021806,0.04811381,3422.4,3421.6,0.7571]
[1732389022018,0.7288,3422.7,3421.6,0.7571]
[1732389022019,0.14859,3422.6,3421.6,0.7571]
[1732389022216,0.31989892,3422.5,3421.6,0.78632291]
[1732389022521,0.04817023,3422.5,3421.6,0.7571]
[1732389023015,0.27165692,3422.4,3421.6,0.7571]
[1732389023404,0.04810223,3422.3,3421.6,0.7571]
[1732389023563,0.04810223,3422.3,3421.7,0.02922293]
[1732389023848,0.14859,3422.6,3421.7,0.02922293]
[1732389024018,0.04670624,3422.5,3421.7,0.02922293]
[1732389024221,0.7288,3422.7,3421.7,0.32072293]
[1732389024436,1.000457,3423.0,3421.8,0.7571]
[1732389024747,0.31845734,3422.9,3421.9,0.02922007]
[1732389024955,0.04693186,3422.9,3421.8,1.16584399]
[1732389025113,0.04693186,3422.9,3421.8,0.40874399]
[1732389025114,0.7288,3422.8,3421.8,0.40874399]
[1732389025314,0.7288,3422.2,3421.4,0.53310623]
[1732389025544,2.92232,3422.0,3421.4,0.53310623]
[1732389025744,4.00033393,3421.9,3421.4,0.53310623]
[1732389025920,0.27153393,3421.8,3421.4,0.53310623]
[1732389026253,0.77505483,3421.7,3421.4,0.53310623]
[1732389026463,0.37750548,3421.6,3421.4,0.53310623]
[1732389026914,0.04614195,3421.5,3421.4,0.53310623]
[1732389027142,0.04614195,3421.5,3420.5,0.7571]
[1732389027352,0.7288,3421.7,3420.5,0.7571]
[1732389027549,0.0460855,3421.4,3420.5,0.7571]
[1732389027864,0.04602905,3421.3,3420.5,0.7571]
[1732389028014,0.665116,3421.6,3420.5,0.7571]
[1732389028330,0.04614195,3421.5,3420.5,0.7571]
[1732389029067,0.4440058,3421.4,3420.5,0.7571]
[1732389029351,0.04602905,3421.3,3420.5,0.7571]
[1732389030458,0.7288,3421.2,3419.9,1.0911]
[1732389030662,3.76008263,3421.1,3419.9,1.0911]
[1732389030981,3.04591614,3421.1,3419.9,1.0911]
[1732389031349,0.04591614,3421.1,3419.9,0.7996]
[1732389032037,0.07588411,3421.1,3419.9,0.7996]
[1732389032235,0.38046841,3421.0,3419.9,0.7996]
[1732389032681,0.07580153,3420.9,3419.9,0.7996]
[1732389034894,0.7288,3420.8,3419.6,0.7996]
[1732389035203,0.7288,3420.7,3419.3,0.7996]
[1732389035399,2.92355,3420.5,3419.3,0.7996]
[1732389035611,0.7288,3420.4,3419.4,0.02924364]
[1732389035898,0.80424199,3420.4,3419.3,0.7996]
[1732389036074,0.3804242,3420.3,3419.3,0.7996]
[1732389036266,0.0753026,3420.2,3419.3,0.7996]
[1732389036459,0.7288,3420.4,3419.3,0.7996]
[1732389036798,0.0753582,3420.3,3419.3,0.7996]
[1732389038980,0.7288,3420.2,3418.4,0.7996]
[1732389039161,0.7288,3420.0,3418.4,0.7996]
[1732389039562,0.07279694,3419.9,3418.4,0.7996]
[1732389040956,0.7288,3419.8,3418.4,0.7996]
[1732389041376,0.0726857,3419.7,3418.4,0.7996]
[1732389042161,0.0726857,3419.7,3418.6,0.7996]
[1732389042700,0.7288,3419.8,3418.6,0.7996]
[1732389043074,0.07265516,3419.7,3418.6,0.7996]
[1732389043400,0.7288,3419.8,3418.6,0.7996]
[1732389043608,0.07265516,3419.7,3418.6,0.7996]
[1732389043808,0.7288,3419.8,3418.6,0.7996]
[1732389044109,0.0726628,3419.7,3418.6,0.7996]
[1732389046944,0.7288,3419.6,3418.6,0.7996]
[1732389047240,0.1,3421.0,3418.3,0.7996]
[1732389047241,0.7288,3419.4,3418.3,0.7996]
[1732389047445,0.8011698,3419.3,3418.0,0.8002]
[1732389047613,0.7288,3419.3,3418.0,0.8002]
[1732389048009,0.07231416,3419.2,3418.0,0.8002]
[1732389048212,0.7288,3419.1,3418.0,0.8002]
[1732389048407,0.07220287,3419.0,3418.0,0.8002]
[1732389049041,0.7288,3418.9,3418.0,0.8002]
[1732389049245,0.07209157,3418.8,3418.0,0.8002]
[1732389049448,0.7288,3418.9,3418.0,0.8002]
[1732389050116,0.07209157,3418.8,3418.0,0.8002]
[1732389051109,0.7288,3419.0,3418.0,0.8002]
[1732389051304,0.07203591,3418.7,3418.0,0.8002]
[1732389051543,0.07214722,3418.9,3418.0,0.8002]
[1732389051754,0.07198025,3418.6,3418.0,0.8002]
[1732389051922,0.7288,3419.0,3418.0,0.8002]
[1732389052107,0.07192459,3418.5,3418.0,0.8002]
[1732389052309,0.7288,3419.0,3418.0,0.8002]
[1732389052507,0.07186892,3418.4,3418.0,0.8002]
[1732389052752,0.7288,3419.0,3418.0,0.8002]
[1732389053251,0.07214722,3418.9,3418.0,0.8002]
[1732389053902,0.7288,3418.8,3417.6,1.0917]
[1732389054264,0.07203591,3418.7,3417.6,1.0917]
[1732389055310,0.7288,3418.8,3417.6,1.0917]
[1732389055811,0.07203591,3418.7,3417.6,1.0917]
[1732389057014,0.7288,3418.8,3417.6,1.0917]
[1732389057381,0.07203591,3418.7,3417.6,1.0917]
[1732389058929,0.7288,3418.8,3417.6,1.0917]
[1732389059275,0.07203591,3418.7,3417.6,1.0917]
[1732389059679,0.7288,3418.8,3417.6,1.0917]
[1732389060039,0.7288,3418.6,3417.6,1.0917]
[1732389060832,0.07188229,3418.5,3417.6,1.0917]
[1732389061137,0.7288,3418.6,3417.6,1.12095535]
[1732389061356,0.7288,3418.9,3417.9,0.55]
[1732389061559,0.7288,3419.2,3418.1,0.55]
[1732389061697,0.06754723,3418.8,3418.1,0.55]
[1732389062043,0.7288,3419.2,3418.2,0.2915]
[1732389062206,0.06749157,3418.7,3418.3,0.8002]
[1732389062414,0.7288,3419.2,3418.4,0.02924817]
[1732389062640,0.7288,3419.2,3418.3,0.8002]
[1732389062801,0.7288,3419.2,3418.3,0.82944812]
[1732389064351,0.829448,3420.1,3418.3,0.82944812]
[1732389064352,0.7288,3419.5,3418.5,0.8002]
[1732389064651,0.829448,3420.5,3418.7,0.8002]
[1732389064872,0.829448,3420.5,3418.8,0.32074355]
[1732389064873,0.7288,3419.9,3418.8,0.32074355]
[1732389065065,0.7288,3419.9,3419.0,0.55]
[1732389065668,0.7288,3420.7,3419.2,0.8002]
[1732389065957,0.34099647,3420.6,3419.3,0.02924049]
[1732389066158,1.00125211,3420.5,3419.2,0.8002]
[1732389066330,0.7288,3420.5,3419.3,0.02924099]
[1732389066509,0.06843316,3420.4,3419.3,0.02924099]
[1732389067665,0.06843316,3420.4,3419.2,0.8002]
[1732389067931,0.06843316,3420.4,3419.3,0.55]
[1732389068297,0.7288,3420.5,3419.4,0.84153862]
[1732389068499,0.7288,3420.5,3419.5,0.55]
[1732389068729,0.8002,3421.3,3419.7,0.55]
[1732389068894,1.00112758,3421.2,3419.8,0.02923548]
[1732389069107,0.3411816,3421.1,3419.6,0.8123]
[1732389069421,0.7288,3420.9,3419.6,0.8123]
[1732389069612,0.34101484,3420.8,3419.6,0.8123]
[1732389069819,1.00112758,3420.7,3419.6,0.8123]
[1732389070038,1.06970366,3420.6,3419.6,0.8123]
[1732389070345,0.79737608,3420.6,3419.6,0.8123]
[1732389070544,0.79737608,3420.6,3419.1,0.02923507]
[1732389070695,0.79737608,3420.6,3419.3,0.55]
[1732389071042,0.7288,3420.6,3419.3,0.55]
[1732389071229,0.7288,3420.6,3419.3,0.57923839]
[1732389072430,0.7288,3420.6,3419.3,0.55]
[1732389072621,0.7288,3420.6,3419.3,0.57923838]
[1732389072821,0.06785715,3420.5,3419.3,0.55]
[1732389073031,0.7288,3420.4,3419.2,0.8123]
[1732389073349,0.7288,3420.2,3419.2,0.8123]
[1732389073718,0.06771933,3420.1,3419.2,0.8123]
[1732389078045,0.06771933,3420.1,3418.3,0.03448777]
[1732389078248,0.7288,3420.0,3418.6,0.55]
[1732389078554,0.0676081,3419.9,3418.7,0.8222]
[1732389078750,0.0676081,3419.9,3419.7,0.00524378]
[1732389078970,0.7288,3420.0,3419.7,0.00524378]
[1732389079178,0.06755248,3419.8,3419.7,0.00524378]
[1732389079382,0.7288,3420.0,3419.7,0.00524378]
[1732389079599,0.79635248,3419.8,3419.7,0.00524378]
[1732389079905,1.4676987,3419.8,3419.7,0.00524378]
[1732389080187,1.06845657,3419.8,3419.7,0.00524378]
[1732389080362,6.99259657,3419.8,3419.7,0.00524378]
[1732389080548,4.06845657,3419.8,3419.7,0.00524378]
[1732389080750,6.99259657,3419.8,3419.7,0.00524378]
[1732389080947,8.33079611,3419.8,3419.7,0.00524378]
[1732389082504,2.40665611,3419.8,3419.7,0.00524378]
[1732389082649,1.06845657,3419.8,3419.7,0.00524378]
[1732389084675,4.06845657,3419.8,3419.7,0.00524378]
[1732389085887,6.99268249,3419.8,3419.7,0.00524378]
[1732389089101,6.99268249,3419.8,3419.7,14.71365378]
[1732389089417,6.72047779,3419.8,3419.7,11.15019075]
[1732389089607,8.03034696,3419.8,3419.7,11.15019075]
[1732389089814,7.75806677,3419.8,3419.7,10.58771314]
[1732389089961,8.03034723,3419.8,3419.7,10.58771314]
[1732389090571,8.58034723,3419.8,3419.7,7.01294584]
[1732389092461,8.03034723,3419.8,3419.7,7.01294584]
[1732389092651,5.10620723,3419.8,3419.7,7.01294584]
[1732389092871,1.06861825,3419.8,3419.7,7.01294584]
[1732389093257,1.06849422,3419.8,3419.7,7.01294584]
[1732389095558,1.06851181,3419.8,3419.7,7.01294584]
[1732389097085,1.06854551,3419.8,3419.7,7.01294584]
[1732389097459,0.33974551,3419.8,3419.7,7.01294584]
[1732389100655,0.34000289,3419.8,3419.7,7.01294584]
[1732389101553,0.2724651,3419.8,3419.7,7.01294584]
[1732389104468,0.27269675,3419.8,3419.7,7.01294584]
[1732389105368,0.33385708,3419.8,3419.7,7.01294584]
[1732389106209,0.27269675,3419.8,3419.7,7.01294584]
[1732389108181,0.27283079,3419.8,3419.7,7.01294584]
[1732389108702,0.27283079,3420.2,3419.7,7.01294584]
[1732389108906,0.48139338,3420.1,3419.7,7.01294584]
[1732389109228,0.27283079,3420.0,3419.7,7.01294584]
[1732389109393,0.20856259,3420.1,3419.7,7.01294584]
[1732389109394,0.27283079,3419.9,3419.7,7.01294584]
[1732389109711,0.27283079,3419.8,3419.7,7.01294584]
[1732389110007,0.33399112,3419.8,3419.7,7.01294584]
[1732389112173,0.7288,3420.6,3419.7,7.78134584]
[1732389112412,0.27287354,3420.5,3419.7,7.78134584]
[1732389112708,0.27287354,3420.4,3419.7,7.78134584]
[1732389112872,0.27287354,3420.3,3419.7,7.78134584]
[1732389113074,0.27287354,3420.2,3419.7,7.78134584]
[1732389113299,1.20008588,3420.8,3419.7,7.78134584]
[1732389113498,0.33440271,3420.7,3419.7,7.78134584]
[1732389113776,0.42619077,3420.6,3419.7,7.78134584]
[1732389114115,0.33432062,3420.5,3419.7,7.78134584]
[1732389114403,0.27274191,3420.4,3419.7,7.78134584]
[1732389114619,0.27274191,3420.3,3419.7,7.78134584]
[1732389114785,0.27274191,3420.2,3419.7,7.78134584]
[1732389114989,0.0614675,3420.3,3419.7,7.78134584]
[1732389115300,0.33410032,3420.2,3419.8,0.7684]
[1732389115478,0.47389106,3421.0,3419.8,0.7684]
[1732389115811,0.33442126,3420.9,3419.8,0.7684]
[1732389116012,0.27262018,3420.8,3419.8,0.79763768]
[1732389116212,0.27262018,3420.7,3419.8,0.7684]
[1732389116506,0.27262018,3420.6,3419.8,0.7684]
[1732389116713,1.30055038,3421.3,3419.8,0.7684]
[1732389117012,0.51251561,3421.2,3419.8,0.7684]
[1732389117187,0.27251169,3421.1,3419.8,0.7684]
[1732389117383,0.27251169,3421.0,3419.8,0.7684]
[1732389117589,0.27251169,3420.9,3419.8,0.7684]
[1732389117924,0.3343005,3420.8,3419.8,0.7684]
[1732389118223,0.27251169,3420.7,3419.8,0.7684]
[1732389118378,0.06178881,3420.8,3419.8,0.7684]
[1732389118581,0.7288,3421.3,3419.8,0.7684]
[1732389118802,0.27240805,3421.2,3419.8,0.7684]
[1732389119121,0.27240805,3421.1,3419.8,0.7684]
[1732389119280,0.06189998,3421.0,3419.8,0.7684]
[1732389119620,0.06189998,3421.0,3419.7,7.01294584]
[1732389119621,0.33427147,3421.0,3419.9,0.7684]
[1732389119916,0.27237149,3420.9,3419.9,0.7684]
[1732389120112,0.06178881,3420.8,3419.9,0.7684]
[1732389120519,0.14805855,3421.2,3419.9,0.7684]
[1732389120722,0.33436645,3421.1,3419.9,0.7684]
[1732389120874,0.27241089,3421.0,3419.9,0.7684]
[1732389121078,0.33425529,3420.9,3419.9,0.7684]
[1732389121317,0.27241089,3420.8,3419.9,0.7684]
[1732389121514,0.06173322,3420.7,3420.0,0.02923535]
[1732389121721,0.14805855,3421.2,3420.1,0.7684]
[1732389122024,1.06108042,3421.1,3420.1,0.7684]
[1732389122203,0.27238479,3421.0,3420.1,0.7684]
[1732389122380,0.27238479,3421.0,3419.7,7.01294584]
[1732389122381,0.27238479,3421.0,3420.2,0.79763619]
[1732389122580,0.0597993,3420.9,3420.2,0.79763619]
[1732389122811,0.87979802,3421.8,3420.2,0.79763619]
[1732389123013,0.44445546,3421.7,3420.2,0.79763619]
[1732389123215,0.27232206,3421.6,3420.2,0.79763619]
[1732389123383,0.27232206,3421.5,3420.2,0.79763619]
[1732389123583,0.7288,3422.0,3420.2,0.79763619]
[1732389123584,1.18588434,3422.0,3420.2,0.79763619]
[1732389123806,0.4291842,3421.8,3420.5,0.00939394]
[1732389123988,0.2721506,3421.7,3420.6,0.7684]
[1732389124177,0.2721506,3421.6,3420.6,0.7684]
[1732389124381,0.05825481,3421.6,3420.6,0.7684]
[1732389125323,0.7288,3422.6,3420.8,0.7684]
[1732389125536,0.05840545,3421.8,3420.9,0.7684]
[1732389125821,1.20266582,3422.6,3420.9,0.7684]
[1732389126028,0.7684,3422.2,3420.9,0.7684]
[1732389126381,0.0585721,3422.1,3420.9,0.7684]
[1732389128928,0.7288,3422.8,3421.1,0.7958]
[1732389129222,0.7684,3422.4,3421.1,0.7958]
[1732389129618,0.05868319,3422.3,3421.1,0.7958]
[1732389130293,0.7288,3422.2,3421.1,0.7958]
[1732389130493,0.21416042,3422.1,3421.1,0.7958]
[1732389131797,0.21416042,3422.1,3420.5,0.00939394]
[1732389132612,0.21416042,3422.1,3420.5,0.03862377]
[1732389132790,0.21416042,3422.1,3420.5,0.00939394]
[1732389134792,0.21416042,3422.1,3420.6,0.7958]
[1732389135804,0.43431463,3422.0,3420.6,0.7958]
[1732389136328,0.05674298,3421.9,3420.6,0.7958]
[1732389137036,0.8287,3421.8,3420.6,0.7958]
[1732389137530,0.05663187,3421.7,3420.6,0.7958]
[1732389137741,0.05663187,3421.7,3420.8,0.7958]
[1732389137895,0.98428832,3422.1,3420.8,0.7958]
[1732389138342,0.05679853,3422.0,3420.8,0.7958]
[1732389139433,0.05679853,3422.0,3421.1,0.2915]
[1732389139611,0.05679853,3422.0,3421.2,1.0873]
[1732389143065,0.8287,3421.9,3420.7,0.2915]
[1732389143547,0.05671317,3421.8,3420.7,0.2915]
[1732389144518,0.8287,3421.7,3420.6,0.7958]
[1732389144824,0.05660205,3421.6,3420.6,0.7958]
[1732389145138,0.8287,3421.5,3420.6,0.7958]
[1732389145315,0.8287,3421.5,3420.5,0.00939394]
[1732389145316,0.05649092,3421.4,3420.5,0.00939394]
[1732389145524,0.8287,3421.3,3420.5,0.00939394]
[1732389145830,0.05637977,3421.2,3420.5,0.00939394]
[1732389149452,0.8287,3421.3,3420.5,0.00939394]
[1732389149936,0.0563684,3421.2,3420.5,0.00939394]
[1732389150135,0.8287,3421.3,3420.5,0.00939394]
[1732389150435,0.0563684,3421.2,3420.5,0.00939394]
[1732389150869,0.8287,3421.3,3420.5,0.00939394]
[1732389151232,0.0563684,3421.2,3420.5,0.00939394]
[1732389151565,0.8287,3421.3,3420.5,0.00939394]
[1732389151732,0.0563684,3421.2,3420.5,0.00939394]
[1732389152073,0.8287,3421.3,3420.5,0.00939394]
[1732389152482,0.0563684,3421.2,3420.5,0.00939394]
[1732389152880,0.8287,3421.3,3420.5,0.00939394]
[1732389153269,0.0563684,3421.2,3420.5,0.00939394]
[1732389153574,0.8287,3421.3,3420.5,0.00939394]
[1732389153782,0.0563684,3421.2,3420.5,0.00939394]
[1732389154180,0.8287,3421.3,3420.5,0.00939394]
[1732389154558,0.0563684,3421.2,3420.5,0.00939394]
[1732389154776,0.8287,3421.3,3420.5,0.00939394]
[1732389154989,0.0563684,3421.2,3420.6,0.7744]
[1732389155158,0.8101,3422.0,3420.6,0.7744]
[1732389155353,0.32949756,3421.9,3420.8,0.7744]
[1732389155569,0.8101,3421.7,3420.8,0.7744]
[1732389155873,0.27274245,3421.6,3420.8,0.7744]
[1732389156072,0.32931637,3421.6,3420.8,0.7744]
[1732389156290,0.05657392,3421.6,3420.8,1.0659]
[1732389156688,0.05657392,3421.6,3420.9,0.02922893]
[1732389157006,0.05657392,3421.6,3420.8,1.0659]
[1732389162975,0.27289529,3421.5,3420.8,1.0659]
[1732389163173,0.05648372,3421.4,3420.8,1.0659]
[1732389163470,0.8101,3421.7,3420.8,1.0659]
[1732389163676,0.05642815,3421.3,3420.8,1.0659]
[1732389163905,0.8101,3421.7,3420.8,1.0659]
[1732389164209,0.27288578,3421.6,3420.8,1.0659]
[1732389164414,0.05659486,3421.6,3420.8,1.0659]
[1732389164906,1.08299541,3421.5,3420.5,1.07529394]
[1732389165074,0.8101,3421.5,3420.5,1.07529394]
[1732389165386,0.05648372,3421.4,3420.5,1.07529394]
[1732389165810,0.8101,3421.3,3420.5,0.30089394]
[1732389165976,0.86653833,3421.3,3420.5,0.00939394]
[1732389167185,0.8101,3421.1,3420.5,0.00939394]
[1732389167411,0.05627159,3421.0,3420.5,0.00939394]
[1732389168471,0.8179,3420.9,3420.5,0.00939394]
[1732389168781,0.87411601,3420.9,3420.5,0.00939394]
[1732389169407,0.27288976,3420.8,3420.5,0.00939394]
[1732389169727,0.8179,3420.6,3420.5,0.00939394]
[1732389169874,1.09078976,3420.6,3420.5,0.00939394]
[1732389170077,1.146839,3420.6,3420.5,0.00939394]
[1732389171979,0.87394924,3420.6,3420.5,0.00939394]
[1732389176398,1.14652712,3420.6,3420.5,0.00939394]
[1732389176610,7.06998712,3420.6,3420.5,0.00939394]
[1732389176901,8.06932183,3420.6,3420.5,0.00939394]
[1732389180809,7.79674395,3420.6,3420.5,0.00939394]
[1732389181127,8.06888354,3420.6,3420.5,0.00939394]